bitfinex/quotes_ETHUSD_20250413
["timestamp","ask_amount","ask_price","bid_price","bid_amount"]
[1744510129363,6.18157,1617.8,1617.4,1.4233]
[1744510129593,6.18177,1617.7,1617.3,3.0]
[1744510129793,6.18251,1617.5,1617.2,1.4233]
[1744510129998,12.82886,1617.5,1617.1,7.424]
[1744510130172,6.18352,1617.2,1617.1,0.02]
[1744510132102,6.6461,1617.5,1617.1,0.02]
[1744510132274,6.18284,1617.4,1617.1,0.02]
[1744510132469,6.18284,1617.4,1617.1,0.68278712]
[1744510132697,6.6461,1617.5,1617.1,0.68278712]
[1744510132869,6.18278,1617.4,1617.1,0.68278712]
[1744510133074,6.18332,1617.3,1617.1,0.02]
[1744510133275,12.36679,1617.3,1617.1,0.02]
[1744510133780,6.64652,1617.2,1617.1,0.02]
[1744510134886,6.18352,1617.2,1617.1,0.02]
[1744510135077,6.64652,1617.2,1617.1,0.02]
[1744510137214,17.60352,1617.2,1617.1,0.02]
[1744510137409,17.60352,1617.2,1617.1,1e-05]
[1744510137610,17.5233736,1617.2,1617.1,1e-05]
[1744510139873,18.0733736,1617.2,1617.1,1e-05]
[1744510140195,6.18663,1616.4,1616.1,1.3909]
[1744510140396,0.463,1616.8,1616.2,1.3709]
[1744510140596,6.18519,1616.8,1616.4,1.3709]
[1744510140998,6.18466,1617.0,1616.5,9.74309427]
[1744510141215,6.18459,1617.0,1616.6,0.97430943]
[1744510141386,6.185,1616.9,1616.5,1.3709]
[1744510141578,6.18507,1616.8,1616.5,1.3709]
[1744510141798,6.18573,1616.7,1616.5,1.3709]
[1744510141978,6.18582,1616.6,1616.3,1.3709]
[1744510142185,6.18573,1616.7,1616.3,1.3709]
[1744510142400,6.18568,1616.7,1616.3,2.867509]
[1744510142592,6.18622,1616.5,1616.3,1.3709]
[1744510143199,6.18698,1616.3,1616.1,1.3909]
[1744510143388,6.18625,1616.5,1616.1,1.3909]
[1744510143594,6.18589,1616.6,1616.1,7.57863]
[1744510143920,6.18648,1616.5,1616.2,0.757863]
[1744510144084,6.18648,1616.5,1616.1,1.3909]
[1744510144601,9.64844,1616.7,1616.1,7.57862]
[1744510144807,15.83416,1616.7,1616.2,6.18715]
[1744510145203,6.18544,1616.7,1616.3,1.3709]
[1744510145402,6.64772,1616.9,1616.4,6.18643]
[1744510145606,6.18472,1616.9,1616.5,1.989543]
[1744510145986,6.18506,1616.8,1616.5,1.989543]
[1744510146183,6.18576,1616.7,1616.5,1.3709]
[1744510146445,6.18613,1616.6,1616.2,1.3709]
[1744510147221,6.18546,1616.7,1616.3,1.3709]
[1744510147395,6.18511,1616.8,1616.3,7.55786]
[1744510147719,12.37125,1616.7,1616.3,1.3709]
[1744510147885,12.37125,1616.7,1616.3,2.34532343]
[1744510148185,6.18585,1616.6,1616.3,2.34532343]
[1744510148385,6.18585,1616.6,1616.3,1.3709]
[1744510148617,12.37071,1616.8,1616.3,7.55773]
[1744510148825,6.18531,1616.8,1616.3,7.55773]
[1744510149002,6.18473,1616.9,1616.5,1.3709]
[1744510150018,6.18393,1617.1,1616.6,12.37127]
[1744510150318,6.18393,1617.1,1616.7,2.608027]
[1744510150691,6.18452,1617.0,1616.7,2.608027]
[1744510151025,6.18327,1617.3,1616.9,1.3181]
[1744510151588,6.18356,1617.2,1616.9,1.3181]
[1744510151786,12.36736,1617.2,1616.9,1.3181]
[1744510152020,6.18416,1617.1,1616.9,1.3181]
[1744510152320,6.18368,1617.2,1616.9,1.3181]
[1744510153639,6.18405,1617.1,1616.9,1.3181]
[1744510154490,6.18429,1617.0,1616.9,1.3181]
[1744510154719,12.36883,1617.0,1616.6,1.3181]
[1744510154905,12.36883,1617.0,1616.6,2.41381865]
[1744510155100,6.18429,1617.0,1616.6,8.59960865]
[1744510155533,12.36889,1617.0,1616.6,2.41381865]
[1744510156433,6.18429,1617.0,1616.6,2.41381865]
[1744510156609,6.18429,1617.0,1616.6,8.59962865]
[1744510156809,6.18429,1617.0,1616.7,0.85996287]
[1744510158031,6.18429,1617.0,1616.6,2.41381865]
[1744510161048,6.18429,1617.0,1616.6,8.59963865]
[1744510161544,6.18394,1617.1,1616.7,6.18542]
[1744510161732,12.83019,1617.2,1616.7,12.3707]
[1744510161927,0.463,1617.2,1616.6,4.60004292]
[1744510162101,6.1837,1617.2,1616.9,1.4417]
[1744510162302,12.36656,1617.3,1616.9,1.4417]
[1744510162639,6.18328,1617.3,1616.9,7.62631]
[1744510163052,6.18211,1617.6,1617.1,6.18365]
[1744510163203,7.29144,1617.7,1617.2,1.4417]
[1744510163403,7.29144,1617.7,1617.2,2.204244]
[1744510163621,1.1097,1617.7,1617.2,8.387604]
[1744510163823,6.18144,1617.8,1617.3,6.18293]
[1744510164049,3.0,1617.7,1617.3,6.18293]
[1744510164459,12.36298,1617.8,1617.3,6.18293]
[1744510164679,67.73387,1617.9,1617.5,1.4417]
[1744510164981,6.18039,1618.1,1617.5,7.62394]
[1744510165127,14.68068,1618.2,1617.6,6.18174]
[1744510165327,6.1801,1618.1,1617.7,6.18146]
[1744510165655,7.28968,1618.2,1617.8,7.62289]
[1744510165858,6.17998,1618.2,1617.8,9.003325]
[1744510166025,7.28877,1618.4,1617.8,5.47480899]
[1744510166221,6.17907,1618.4,1617.9,6.18059]
[1744510166436,6.17907,1618.4,1617.9,12.36131]
[1744510166655,6.17907,1618.4,1618.0,6.18046]
[1744510166961,3.0,1618.4,1618.0,7.80546]
[1744510167456,3.0,1618.4,1618.0,1.625]
[1744510167625,6.179,1618.4,1618.0,1.625]
[1744510167822,13.56864,1618.5,1618.0,1.625]
[1744510168060,13.56864,1618.5,1618.0,7.80536]
[1744510168256,0.17353506,1618.4,1618.1,0.780536]
[1744510169942,0.17353506,1618.4,1618.2,1.625]
[1744510170624,3.0,1618.7,1618.3,6.17932]
[1744510170827,0.17578151,1618.6,1618.3,6.17932]
[1744510171027,3.0,1618.7,1618.3,6.17932]
[1744510171230,0.17578151,1618.6,1618.4,0.617932]
[1744510171426,9.1778,1618.7,1618.4,0.617932]
[1744510171630,0.17578151,1618.6,1618.4,0.617932]
[1744510171831,15.35594,1618.7,1618.2,7.8045]
[1744510172045,0.17578151,1618.6,1618.2,7.8045]
[1744510172243,15.35594,1618.7,1618.2,7.8045]
[1744510172444,0.17578151,1618.6,1618.2,13.98401]
[1744510172767,9.1778,1618.7,1618.2,13.98401]
[1744510172972,0.17465835,1618.5,1618.3,1.398401]
[1744510173137,0.17578151,1618.6,1618.3,1.398401]
[1744510173337,0.17353506,1618.4,1618.3,7.577721]
[1744510173538,9.1778,1618.7,1618.3,7.577721]
[1744510173763,0.17353506,1618.4,1618.3,1.398401]
[1744510173959,6.1778,1618.7,1618.3,1.398401]
[1744510174152,0.17353506,1618.4,1618.3,7.577721]
[1744510174352,6.1778,1618.7,1618.3,7.577721]
[1744510174555,0.17353506,1618.4,1618.2,1.625]
[1744510174733,6.17873,1618.5,1618.2,1.625]
[1744510174933,0.17353506,1618.4,1618.2,1.625]
[1744510176347,12.35661,1618.6,1618.2,1.625]
[1744510176548,0.17353506,1618.4,1618.2,1.625]
[1744510176768,6.17871,1618.5,1618.2,2.4835486]
[1744510176972,0.17353506,1618.4,1618.2,2.4835486]
[1744510177452,12.35893,1618.3,1618.0,8.8904]
[1744510177653,6.17933,1618.3,1618.0,1.5034]
[1744510178437,7.28869,1618.4,1618.0,7.68372]
[1744510178640,7.46222506,1618.4,1618.0,7.68372]
[1744510178851,13.64138506,1618.4,1618.1,0.768372]
[1744510179035,13.64138506,1618.4,1618.0,1.5034]
[1744510179671,7.46222506,1618.4,1618.0,7.68377]
[1744510179876,0.17353506,1618.4,1618.1,6.18005]
[1744510182474,0.17353506,1618.4,1618.0,7.68377]
[1744510182641,6.35247506,1618.4,1618.0,7.68377]
[1744510182843,12.53163506,1618.4,1618.1,0.768377]
[1744510184470,6.35247506,1618.4,1618.1,0.768377]
[1744510184858,0.17353506,1618.4,1618.1,6.948417]
[1744510186757,0.17353506,1618.4,1618.3,1.5941]
[1744510187169,12.35663,1618.6,1618.3,1.5941]
[1744510187368,0.17412193,1618.4,1618.3,2.371479]
[1744510187848,12.35663,1618.6,1618.3,2.371479]
[1744510188048,0.17524523,1618.5,1618.3,2.371479]
[1744510189081,6.35399523,1618.5,1618.3,0.777379]
[1744510189271,12.53284523,1618.5,1618.1,8.542517]
[1744510189470,0.17524523,1618.5,1618.4,9.95926427]
[1744510189787,7.28571,1619.2,1618.7,6.1777]
[1744510189974,6.17628,1619.1,1618.7,6.17779]
[1744510190175,0.18198208,1619.1,1618.7,6.17758]
[1744510190370,0.18198208,1619.1,1618.8,6.795168]
[1744510190585,13.46186,1619.2,1618.8,6.795168]
[1744510190748,0.18085962,1619.0,1618.8,6.795168]
[1744510190953,13.46186,1619.2,1618.8,6.795168]
[1744510191166,0.17973702,1618.9,1618.8,6.795168]
[1744510191350,13.46186,1619.2,1618.8,6.795168]
[1744510191553,13.46186,1619.2,1618.9,0.6795168]
[1744510191754,12.35291,1619.1,1618.9,0.6795168]
[1744510191949,6.17679,1619.0,1618.6,7.77205]
[1744510192159,6.17716,1618.9,1618.6,1.5941]
[1744510193972,6.17679,1619.0,1618.6,1.5941]
[1744510194492,12.35377,1619.0,1618.6,1.5941]
[1744510194698,6.17679,1619.0,1618.6,1.5941]
[1744510194994,6.17716,1618.9,1618.6,2.371343]
[1744510196895,6.17665,1619.0,1618.6,0.777243]
[1744510197198,6.17873,1618.5,1618.2,1.5707]
[1744510199176,7.28791,1618.6,1618.2,1.5707]
[1744510199177,7.28791,1618.6,1618.2,7.75032]
[1744510199374,6.17821,1618.6,1618.2,13.9299]
[1744510199671,3.47279356,1618.9,1618.4,6.17879]
[1744510199672,7.28712,1618.8,1618.4,6.17879]
[1744510200071,6.17742,1618.8,1618.5,7.74925]
[1744510200277,6.17769,1618.8,1618.4,6.17879]
[1744510200476,12.35543,1618.8,1618.4,7.74949]
[1744510201303,6.17769,1618.8,1618.4,7.74949]
[1744510201501,13.46325,1619.0,1618.6,6.17803]
[1744510201703,6.17769,1618.8,1618.5,0.774949]
[1744510202581,12.35543,1618.8,1618.5,0.774949]
[1744510203206,1.1097,1618.7,1618.3,7.36299]
[1744510203374,6.1788,1618.5,1618.3,5.97]
[1744510203692,6.1788,1618.5,1618.1,6.948427]
[1744510203889,1.1097,1618.7,1618.3,7.81413]
[1744510204093,7.28763,1618.7,1618.4,0.781413]
[1744510204483,13.46566,1618.7,1618.4,0.781413]
[1744510204671,6.17793,1618.7,1618.4,0.781413]
[1744510204873,12.3552,1618.8,1618.4,6.960193]
[1744510205276,6.17745,1618.8,1618.4,6.960193]
[1744510205575,7.286,1619.1,1618.7,1.635]
[1744510205770,13.46257,1619.1,1618.7,7.81266]
[1744510205974,12.35287,1619.1,1618.7,7.81266]
[1744510207077,6.17665,1619.0,1618.7,1.635]
[1744510209308,6.17665,1619.0,1618.7,7.81273]
[1744510209505,6.17665,1619.0,1618.8,0.781273]
[1744510209698,6.17703,1618.9,1618.7,1.635]
[1744510210101,12.35356,1619.0,1618.7,1.635]
[1744510210811,6.17708,1618.9,1618.7,1.635]
[1744510211008,6.17817,1618.6,1618.5,2.2800193]
[1744510211211,6.17856,1618.5,1618.3,1.6592]
[1744510211416,6.18008,1618.2,1617.9,1.6592]
[1744510211910,6.17937,1618.3,1617.9,7.83989]
[1744510212210,12.35897,1618.3,1618.0,2.18622427]
[1744510212416,12.35897,1618.3,1617.9,7.83989]
[1744510212589,6.17937,1618.3,1618.0,0.783989]
[1744510212790,6.17899,1618.4,1618.0,2.97021327]
[1744510212983,6.1783,1618.6,1618.3,1.6592]
[1744510213379,6.17956,1618.3,1618.1,1.6592]
[1744510213611,6.18008,1618.1,1618.0,0.783989]
[1744510213820,6.18046,1618.0,1617.9,1.6592]
[1744510213982,12.3604,1618.1,1617.9,1.6592]
[1744510214185,6.18046,1618.0,1617.9,1.6592]
[1744510215891,6.18008,1618.1,1617.9,1.6592]
[1744510216419,6.18046,1618.0,1617.9,1.6592]
[1744510216590,6.18046,1618.0,1617.9,2.04374243]
[1744510218992,6.18046,1618.0,1617.9,1.6592]
[1744510219715,6.17932,1618.3,1617.7,1.5116]
[1744510219716,6.18108,1617.9,1617.7,1.5116]
[1744510220617,6.18052,1618.0,1617.7,1.5116]
[1744510220928,6.18052,1618.0,1617.7,7.69321]
[1744510221289,6.17952,1618.3,1618.0,1.6078]
[1744510221491,6.17934,1618.3,1618.0,9.97436427]
[1744510221691,6.17934,1618.3,1618.1,0.99743643]
[1744510221911,6.17934,1618.3,1618.0,3.79402427]
[1744510222104,12.35812,1618.4,1618.0,9.97434427]
[1744510223103,6.17932,1618.3,1618.0,9.97434427]
[1744510223491,6.17932,1618.3,1618.0,3.79402427]
[1744510225401,6.17896,1618.4,1618.0,9.97444427]
[1744510225726,6.17861,1618.5,1618.2,1.652]
[1744510225890,6.1783,1618.6,1618.2,10.01791427]
[1744510226228,12.3551,1618.8,1618.5,1.652]
[1744510226791,6.17705,1618.9,1618.6,2.18622427]
[1744510227012,6.1778,1618.7,1618.5,1.652]
[1744510227334,12.3559,1618.7,1618.5,1.652]
[1744510227622,6.17817,1618.6,1618.3,1.652]
[1744510227832,6.1797,1618.2,1618.1,2.64944443]
[1744510228033,12.35857,1618.4,1618.1,1.652]
[1744510228191,6.17925,1618.4,1618.1,1.652]
[1744510229240,6.17805,1618.7,1618.2,7.83151]
[1744510229534,12.35513,1618.8,1618.4,6.17879]
[1744510229704,12.35513,1618.8,1618.4,7.18049143]
[1744510229886,6.17828,1618.6,1618.4,1.00170143]
[1744510230093,6.17796,1618.7,1618.3,3.83822427]
[1744510230292,6.17796,1618.7,1618.3,10.01733427]
[1744510230492,6.17744,1618.8,1618.3,10.01733427]
[1744510230692,6.17744,1618.8,1618.4,7.83079]
[1744510231292,0.26436627,1618.7,1618.4,7.83079]
[1744510231494,0.26436627,1618.7,1618.5,0.783079]
[1744510233021,0.26436627,1618.7,1618.6,1.6298]
[1744510233414,6.17707,1618.9,1618.6,1.6298]
[1744510233596,0.24351057,1618.7,1618.6,1.6298]
[1744510233797,6.17707,1618.9,1618.6,1.6298]
[1744510233997,0.24351057,1618.7,1618.6,1.6298]
[1744510234221,6.17707,1618.9,1618.6,2.4889079]
[1744510234424,0.24351057,1618.7,1618.6,2.4889079]
[1744510234631,12.35434,1618.9,1618.6,2.4889079]
[1744510235127,0.24424966,1618.8,1618.6,2.4889079]
[1744510235918,6.42167966,1618.8,1618.6,2.4889079]
[1744510236114,0.24424966,1618.8,1618.5,0.783079]
[1744510236307,6.17817,1618.6,1618.5,0.783079]
[1744510236495,6.42094139,1618.6,1618.5,0.783079]
[1744510237627,6.42094139,1618.6,1618.4,1.5935]
[1744510237824,0.24277139,1618.6,1618.4,1.5935]
[1744510238208,6.17779,1618.7,1618.4,1.5935]
[1744510238404,0.24203213,1618.5,1618.4,7.77244]
[1744510238615,12.35512,1618.8,1618.4,7.77244]
[1744510238822,0.24203213,1618.5,1618.4,10.71791943]
[1744510239022,6.17782,1618.7,1618.4,4.53897943]
[1744510239409,0.24277139,1618.6,1618.4,10.71775943]
[1744510239867,6.17744,1618.8,1618.4,10.71775943]
[1744510240015,0.24203213,1618.5,1618.4,10.71775943]
[1744510240342,12.35509,1618.8,1618.4,10.71775943]
[1744510240543,12.35509,1618.8,1618.5,1.07177594]
[1744510240722,0.24351057,1618.7,1618.5,1.07177594]
[1744510241111,6.42132057,1618.7,1618.5,1.07177594]
[1744510242412,12.59936057,1618.7,1618.5,1.07177594]
[1744510242611,12.59936057,1618.7,1618.4,4.53897943]
[1744510243443,6.42132057,1618.7,1618.4,4.53897943]
[1744510243814,12.59935057,1618.7,1618.4,4.53897943]
[1744510244451,6.42132057,1618.7,1618.4,4.53897943]
[1744510244622,6.42132057,1618.7,1618.4,10.71790943]
[1744510244821,6.42132057,1618.7,1618.5,1.07179094]
[1744510248537,12.59934057,1618.7,1618.5,1.07179094]
[1744510248737,12.59934057,1618.7,1618.4,4.53897943]
[1744510248936,6.17911,1618.4,1618.2,1.6466]
[1744510249134,6.41997173,1618.3,1618.0,1.6466]
[1744510249452,6.17932,1618.3,1618.0,4.6466]
[1744510249812,0.24001056,1618.2,1618.0,1.6466]
[1744510250213,6.17932,1618.3,1618.0,1.6466]
[1744510250419,6.1797,1618.2,1618.0,1.6466]
[1744510250619,6.41971056,1618.2,1618.0,1.6466]
[1744510250855,6.41971056,1618.2,1617.9,53.45333288]
[1744510251062,12.59964056,1618.2,1617.9,53.45333288]
[1744510251346,12.59964056,1618.2,1617.9,52.991]
[1744510251556,0.24001056,1618.2,1617.8,1.6466]
[1744510251725,6.18127,1617.8,1617.6,1.6466]
[1744510252129,0.23480278,1617.7,1617.6,1.6466]
[1744510252943,6.18127,1617.8,1617.6,1.6466]
[1744510253143,0.23480278,1617.7,1617.6,1.6466]
[1744510254355,6.18127,1617.8,1617.6,1.6466]
[1744510254662,6.18161,1617.7,1617.6,1.6466]
[1744510255153,6.41549402,1617.7,1617.6,1.6466]
[1744510256155,0.23388402,1617.7,1617.6,8.29325]
[1744510256640,7.28982,1618.1,1617.6,8.29306]
[1744510256956,0.23361059,1618.0,1617.7,6.18141]
[1744510257151,0.23361059,1618.0,1617.7,6.18138]
[1744510257457,0.23361059,1618.0,1617.8,6.18118]
[1744510257644,0.23361059,1618.0,1617.9,2.124018]
[1744510257957,6.17895,1618.4,1618.0,6.1804]
[1744510258341,6.17895,1618.4,1618.1,1.5059]
[1744510261050,1.1097,1618.5,1617.9,14.412048]
[1744510261232,6.17986,1618.2,1617.9,8.231218]
[1744510262469,6.18023,1618.1,1617.9,7.6131]
[1744510262844,6.17934,1618.3,1617.9,7.6131]
[1744510263032,6.17934,1618.3,1617.9,13.79376]
[1744510263233,6.17934,1618.3,1617.9,19.97445]
[1744510263966,6.17934,1618.3,1617.9,13.79376]
[1744510264168,6.17934,1618.3,1618.0,1.379376]
[1744510264753,6.17895,1618.4,1618.1,1.6431]
[1744510264964,6.17859,1618.5,1618.2,6.17964]
[1744510265359,0.23738929,1618.4,1618.2,6.17964]
[1744510265682,6.41633929,1618.4,1618.1,8.9721]
[1744510265978,0.23738929,1618.4,1618.1,16.45561596]
[1744510266133,0.23738929,1618.4,1618.1,22.63554596]
[1744510266335,0.23738929,1618.4,1618.1,10.27554596]
[1744510266542,6.17891,1618.5,1618.1,15.15213]
[1744510266765,0.23738929,1618.4,1618.2,6.17962]
[1744510266965,0.23738929,1618.4,1618.3,1.5868]
[1744510267262,6.17871,1618.5,1618.3,1.5868]
[1744510267443,0.23998106,1618.4,1618.3,1.5868]
[1744510268632,0.23998106,1618.4,1618.3,2.981412]
[1744510268868,6.17818,1618.6,1618.3,2.981412]
[1744510269056,0.23998106,1618.4,1618.3,2.981412]
[1744510269244,6.17818,1618.6,1618.3,2.981412]
[1744510269446,0.23998106,1618.4,1618.3,2.981412]
[1744510269646,6.17818,1618.6,1618.3,2.981412]
[1744510269871,0.23998106,1618.4,1618.3,1.5868]
[1744510270057,6.17875,1618.5,1618.3,1.5868]
[1744510270258,0.23998106,1618.4,1618.3,1.5868]
[1744510270578,6.17823,1618.6,1618.3,1.5868]
[1744510270792,6.41892106,1618.4,1618.3,1.5868]
[1744510271084,12.35576,1618.7,1618.3,1.5868]
[1744510271289,0.24014504,1618.4,1618.3,8.842456]
[1744510271442,0.24014504,1618.4,1618.3,2.663436]
[1744510271641,6.17863,1618.5,1618.3,1.5868]
[1744510271876,0.24014504,1618.4,1618.3,1.5868]
[1744510272252,6.41908504,1618.4,1618.2,1.5558]
[1744510272584,6.17985,1618.2,1618.0,1.5558]
[1744510272954,0.23805759,1618.1,1618.0,1.5558]
[1744510273150,6.17985,1618.2,1618.0,1.5558]
[1744510273348,0.23805759,1618.1,1618.0,1.5558]
[1744510273548,6.17985,1618.2,1618.0,1.5558]
[1744510273749,0.23805759,1618.1,1618.0,1.5558]
[1744510273945,6.179,1618.4,1618.0,1.5558]
[1744510274149,0.23953677,1618.3,1618.1,6.18001]
[1744510274357,6.179,1618.4,1618.1,1.39161]
[1744510274690,6.17988,1618.2,1618.0,1.5558]
[1744510275044,0.23805759,1618.1,1618.0,1.5558]
[1744510275259,6.17988,1618.2,1618.0,1.5558]
[1744510275589,0.23805759,1618.1,1618.0,1.5558]
[1744510275959,6.17988,1618.2,1618.0,1.5558]
[1744510276156,0.23805759,1618.1,1618.0,1.5558]
[1744510276362,6.17988,1618.2,1618.0,1.5558]
[1744510276681,0.23805759,1618.1,1618.0,1.5558]
[1744510276986,6.17988,1618.2,1618.0,1.5558]
[1744510277168,0.23805759,1618.1,1618.0,1.5558]
[1744510277378,6.17988,1618.2,1618.0,1.5558]
[1744510277573,0.23805759,1618.1,1618.0,1.5558]
[1744510277882,6.17988,1618.2,1618.0,1.5558]
[1744510278085,0.23749993,1618.1,1618.0,1.5558]
[1744510278487,6.17988,1618.2,1618.0,1.5558]
[1744510278662,0.23749993,1618.1,1618.0,1.5558]
[1744510278864,6.17988,1618.2,1618.0,1.5558]
[1744510279065,0.23749993,1618.1,1618.0,1.5558]
[1744510279597,6.18062,1618.0,1617.8,8.9926]
[1744510280091,0.23602039,1617.9,1617.8,8.9926]
[1744510280462,12.36078,1618.1,1617.8,8.9926]
[1744510280653,0.23602039,1617.9,1617.8,17.588247]
[1744510281149,6.18039,1618.1,1617.8,17.588247]
[1744510281585,0.2367602,1618.0,1617.8,17.588247]
[1744510281958,0.2367602,1618.0,1617.8,15.17383]
[1744510292921,1.3464602,1618.0,1617.8,7.328]
[1744510293205,1.1097,1617.7,1617.0,12.15426]
[1744510293360,6.18329,1617.3,1617.0,5.97]
[1744510293561,6.18412,1617.1,1616.8,6.60787122]
[1744510293766,0.22778345,1617.0,1616.8,6.60787122]
[1744510293967,6.18443,1617.0,1616.8,6.60787122]
[1744510294366,0.22704272,1616.9,1616.8,6.60787122]
[1744510295410,0.22704272,1616.9,1616.8,8.80827103]
[1744510295559,13.47642,1617.3,1616.9,6.18453]
[1744510295763,6.18368,1617.2,1616.8,27.14814103]
[1744510295958,0.22926464,1617.2,1616.8,20.96309103]
[1744510296165,0.22926464,1617.2,1616.9,6.18452]
[1744510296473,0.22926464,1617.2,1616.9,8.8992811]
[1744510297791,0.22926464,1617.2,1617.1,6.1839]
[1744510297999,7.29208,1617.5,1617.1,6.1839]
[1744510298192,12.36503,1617.5,1617.1,12.15367]
[1744510298493,0.23074546,1617.4,1617.1,5.97]
[1744510298669,6.18352,1617.2,1617.0,7.311]
[1744510298990,6.1839,1617.1,1616.8,16.39847103]
[1744510299702,0.22778345,1617.0,1616.9,7.8242871]
[1744510299902,7.29286,1617.3,1616.9,7.8242871]
[1744510300065,0.22778345,1617.0,1616.9,1.6398471]
[1744510300391,6.18392,1617.1,1616.9,1.6398471]
[1744510300597,0.22778345,1617.0,1616.8,15.97542981]
[1744510301402,0.12778345,1617.0,1616.8,15.97542981]
[1744510301618,0.21870938,1617.0,1616.8,15.97542981]
[1744510302091,0.21870938,1617.0,1616.8,5.97]
[1744510303600,6.40312938,1617.0,1616.8,5.97]
[1744510303785,12.58773938,1617.0,1616.8,5.97]
[1744510303987,6.18467,1616.9,1616.8,5.97]
[1744510304187,0.21171639,1616.9,1616.7,59.1884]
[1744510304489,13.4763,1617.3,1616.9,6.18465]
[1744510304683,13.4763,1617.3,1616.9,12.15465]
[1744510305102,7.29288,1617.3,1616.9,12.15448]
[1744510305801,7.29288,1617.3,1617.0,6.18421]
[1744510306167,6.18356,1617.2,1616.9,12.15448]
[1744510306370,6.18356,1617.2,1616.9,15.032002]
[1744510306802,7.29288,1617.3,1616.9,8.847522]
[1744510306803,1.1097,1617.3,1616.9,8.847522]
[1744510306990,6.18375,1617.2,1616.9,8.847522]
[1744510308182,7.29399,1617.0,1616.9,5.97]
[1744510309002,7.50648809,1617.0,1616.9,5.97]
[1744510310406,1.32219809,1617.0,1616.9,5.97]
[1744510310610,0.21249809,1617.0,1616.9,6.18467]
[1744510310910,1.1097,1617.2,1616.9,8.938526]
[1744510311113,0.21183289,1617.0,1616.9,8.938526]
[1744510311288,1.1097,1617.4,1617.0,6.18411]
[1744510311491,6.18242,1617.5,1617.0,1.98290001]
[1744510311805,1.1097,1617.6,1617.4,6.18275]
[1744510312014,6.18166,1617.7,1617.4,6.18275]
[1744510312190,1.1097,1617.8,1617.5,6.18235]
[1744510313602,1.1097,1617.8,1617.6,6.18196]
[1744510313812,7.29018,1618.0,1617.6,12.36378]
[1744510313990,7.29018,1618.0,1617.6,7.418198]
[1744510314193,7.29018,1618.0,1617.6,6.18182]
[1744510314612,6.18099,1617.9,1617.5,6.18236]
[1744510314809,7.29018,1618.0,1617.5,6.18215]
[1744510315015,7.29018,1618.0,1617.6,6.18179]
[1744510315328,7.29018,1618.0,1617.5,12.3643]
[1744510315522,7.29018,1618.0,1617.5,15.00460243]
[1744510315725,7.29018,1618.0,1617.6,6.18199]
[1744510316028,7.28868,1618.4,1617.9,6.18059]
[1744510316231,13.4679,1618.4,1618.0,7.68782]
[1744510316531,6.18029,1618.1,1617.8,7.293]
[1744510317094,13.47043,1618.1,1617.7,7.68896]
[1744510317323,6.18049,1618.0,1617.7,1.5076]
[1744510317532,12.36123,1618.0,1617.7,3.0]
[1744510317696,1.1097,1617.8,1617.5,7.293]
[1744510318025,13.47275,1617.8,1617.5,7.293]
[1744510318408,6.18178,1617.7,1617.3,7.69044]
[1744510319116,0.20159566,1617.6,1617.3,7.69044]
[1744510319315,6.18178,1617.7,1617.3,7.69044]
[1744510319529,0.20085547,1617.5,1617.3,7.69044]
[1744510319730,0.20085547,1617.5,1617.3,10.32565443]
[1744510319931,6.18178,1617.7,1617.3,10.32565443]
[1744510320122,7.29095,1617.8,1617.3,19.50863443]
[1744510320123,0.2001152,1617.4,1617.3,19.50863443]
[1744510320309,6.18087,1617.9,1617.5,6.18217]
[1744510320628,12.36199,1617.9,1617.5,6.18217]
[1744510320829,12.36201,1617.9,1617.5,6.18217]
[1744510321228,7.29102,1617.8,1617.2,7.292]
[1744510321448,6.18293,1617.4,1617.1,1.5895]
[1744510321599,6.18293,1617.4,1617.1,4.5895]
[1744510321798,6.18293,1617.4,1617.1,10.77337]
[1744510322002,6.18242,1617.5,1617.1,13.065914]
[1744510322195,6.18242,1617.5,1617.2,6.18348]
[1744510322638,6.18242,1617.5,1617.1,13.065914]
[1744510322639,7.2914,1617.7,1617.1,9.06846827]
[1744510322803,13.47328,1617.7,1617.3,6.18297]
[1744510323544,7.2914,1617.7,1617.3,12.36592]
[1744510323703,7.2914,1617.7,1617.3,13.602512]
[1744510324535,13.47326,1617.7,1617.3,7.419542]
[1744510324745,6.18201,1617.6,1617.3,6.18295]
[1744510325455,0.20085547,1617.5,1617.3,6.18295]
[1744510326047,6.38328547,1617.5,1617.2,6.18348]
[1744510328283,1.1097,1617.4,1617.2,6.18348]
[1744510328568,6.18374,1617.2,1616.9,61.781056]
[1744510328772,7.4916732,1617.4,1617.1,6.1839]
[1744510328938,12.36492,1617.5,1617.1,6.1839]
[1744510329126,6.18279,1617.4,1617.0,12.3290996]
[1744510329458,6.18279,1617.4,1617.1,1.23290996]
[1744510330159,6.18242,1617.5,1617.1,1.23290996]
[1744510330327,6.18242,1617.5,1617.2,1.5431]
[1744510330529,12.36503,1617.5,1617.2,1.5431]
[1744510330924,7.29172,1617.6,1617.2,1.5431]
[1744510331152,7.29106,1617.8,1617.4,6.18256]
[1744510331455,6.18136,1617.8,1617.4,13.601669]
[1744510331662,6.18136,1617.8,1617.5,1.5431]
[1744510332677,7.29059,1617.9,1617.5,7.7254]
[1744510332852,6.18048,1618.0,1617.6,6.18196]
[1744510334564,6.18048,1618.0,1617.7,6.1816]
[1744510334763,6.18048,1618.0,1617.7,7.417956]
[1744510334968,6.18048,1618.0,1617.7,1.236356]
[1744510336560,6.18123,1617.8,1617.5,7.5131]
[1744510336763,6.18177,1617.7,1617.5,5.97]
[1744510336943,6.18177,1617.7,1617.5,3.0]
[1744510337740,6.18089,1617.9,1617.5,9.18233]
[1744510337942,12.36197,1617.9,1617.5,9.18233]
[1744510338141,12.36197,1617.9,1617.6,0.918233]